fUSD/lending_fUSD_20251119
["ID","MTS","AMOUNT","RATE_DAILY","PERIOD"]
[394455472,1763592639532,-835.09506367,0.00017521,2]
[394455473,1763592639542,-1000.0,0.00017521,2]
[394455474,1763592639551,-1000.0,0.00017521,2]
[394455475,1763592639560,-508.65666473,0.00017521,2]
[394455476,1763592639569,-1000.0,0.00017521,2]
[394455477,1763592639579,-1129.01704566,0.00017521,2]
[394455478,1763592639588,-478.25879829,0.00017521,2]
[394455479,1763592639597,-491.44400652,0.00017521,2]
[394455480,1763592639606,-1000.0,0.00017521,2]
[394455481,1763592639615,-1000.0,0.00017521,2]
[394455482,1763592639625,-1000.0,0.00017521,2]
[394455483,1763592639634,-1000.0,0.00017521,2]
[394455484,1763592639643,-1000.0,0.00017521,2]
[394455485,1763592639652,-1000.0,0.00017521,2]
[394455486,1763592639662,-215.58724508,0.00017521,2]
[394455487,1763592639674,-280.0,0.0001754,2]
[394455488,1763592639683,-552.0,0.00017541,2]
[394455489,1763592639692,-10730.38021078,0.00017553,2]
[394455490,1763592639702,-23243.21563798,0.00017558,2]
[394455491,1763592639711,-166.66,0.00017589,2]
[394455492,1763592639720,-1562.43668397,0.00017611,2]
[394455493,1763592639730,-280.0,0.00017626,2]
[394455494,1763592639739,-3011.9463,0.00017657,2]
[394455495,1763592639759,-1462.69,0.00017662,2]
[394455496,1763592639775,-280.0,0.00017667,2]
[394455497,1763592639784,-23243.21563798,0.00017672,2]
[394455498,1763592639793,-280.0,0.00017678,2]
[394455499,1763592639803,-25670.6003,0.000177,2]
[394455500,1763592639812,-1000.0,0.000177,2]
[394455501,1763592639822,-222.35315505,0.00017705,2]
[394455502,1763592639832,-420.0,0.00017706,2]
[394455503,1763592639841,-1562.43668397,0.00017707,2]
[394455504,1763592639850,-250.0,0.00017709,2]
[394455505,1763592639860,-300.0,0.00017709,2]
[394455506,1763592639870,-300.0,0.00017709,2]
[394455507,1763592639879,-205.41652084,0.00017709,2]
[394455508,1763592639888,-300.0,0.00017709,2]
[394455509,1763592639898,-300.0,0.00017709,2]
[394455510,1763592639907,-193.0,0.00017709,2]
[394455511,1763592639916,-150.75211863,0.0001771,2]
[394455512,1763592639926,-300.0,0.0001771,2]
[394455513,1763592639935,-2615.46755538,0.0001771,2]
[394455514,1763592639945,-300.0,0.0001771,2]
[394455515,1763592639954,-300.0,0.0001771,2]
[394455516,1763592639963,-150.0,0.0001771,2]
[394455517,1763592639973,-10730.38021078,0.00017726,2]
[394455518,1763592639983,-297.16137531,0.00017734,2]
[394455519,1763592639993,-1680.0,0.00017762,2]
[394455520,1763592640002,-300.0,0.00017785,2]
[394455521,1763592640011,-304.17315594,0.00017785,2]
[394455522,1763592640021,-300.0,0.00017785,2]
[394455523,1763592640031,-300.0,0.00017785,2]
[394455524,1763592640040,-23243.21563798,0.00017786,2]
[394455525,1763592640050,-5495.6647,0.000178,2]
[394455526,1763592640060,-1562.43668397,0.00017804,2]
[394455527,1763592640069,-500.0,0.00017898,2]
[394455528,1763592640079,-500.0,0.00017898,2]
[394455529,1763592640088,-353.72095399,0.00017899,2]
[394455530,1763592640211,-500.0,0.00017899,2]
[394455531,1763592640221,-500.0,0.00017899,2]
[394455532,1763592640231,-500.0,0.00017899,2]
[394455533,1763592640240,-500.0,0.00017899,2]
[394455534,1763592640249,-500.0,0.00017899,2]
[394455535,1763592640259,-500.0,0.00017899,2]
[394455536,1763592640268,-500.0,0.00017899,2]
[394455537,1763592640278,-1562.43668397,0.000179,2]
[394455538,1763592640288,-2069.65343036,0.000179,2]
[394455539,1763592640297,-10730.38021078,0.000179,2]
[394455540,1763592640306,-26515.2908647,0.000179,2]
[394455541,1763592640315,-709.66528351,0.000179,2]
[394455542,1763592640325,-270.88337036,0.000179,3]
[394455543,1763592640334,-1118.46417723,0.000179,2]
[394455545,1763592640343,-23243.21563798,0.000179,2]
[394455547,1763592640352,-845.72484322,0.000179,2]
[394455548,1763592640361,-3788.0,0.000179,2]
[394455549,1763592640370,-2025.09498,0.0001791,2]
[394455550,1763592640379,-1600.0,0.00017916,2]
[394455551,1763592640388,-183.09,0.00017935,2]
[394455552,1763592640397,-150.19,0.00017935,2]
[394455553,1763592640406,-1500.0,0.00017968,2]
[394455554,1763592640416,-415.61370264,0.00017968,2]
[394455555,1763592640425,-1500.0,0.00017968,2]
[394455556,1763592640434,-500.0,0.00017973,2]
[394455557,1763592640443,-500.0,0.00017973,2]
[394455558,1763592640452,-500.0,0.00017973,2]
[394455559,1763592640461,-500.0,0.00017973,2]
[394455560,1763592640470,-500.0,0.00017973,2]
[394455561,1763592640480,-500.0,0.00017973,2]
[394455562,1763592640489,-150.0,0.00017973,2]
[394455563,1763592640498,-500.0,0.00017973,2]
[394455564,1763592640507,-571.75692133,0.00017973,2]
[394455565,1763592640516,-500.0,0.00017973,2]
[394455566,1763592640525,-500.0,0.00017982,2]
[394455567,1763592640535,-1213.05065276,0.0001799,2]
[394455568,1763592640544,-1213.05065276,0.0001799,2]
[394455569,1763592640553,-1213.05065276,0.0001799,2]
[394455570,1763592640562,-151.0,0.00017997,2]
[394455571,1763592640571,-1462.69,0.00017998,2]
[394455572,1763592640580,-1498.51,0.00017999,2]
[394455573,1763592640589,-500.0,0.00017999,2]
[394455574,1763592640598,-500.0,0.00017999,2]
[394455575,1763592640608,-617.34311388,0.00017999,2]
[394455576,1763592640617,-500.0,0.00017999,2]
[394455577,1763592640626,-500.0,0.00017999,2]
[394455578,1763592640635,-500.0,0.00017999,2]
[394455579,1763592640644,-500.0,0.00017999,2]
[394455580,1763592640653,-500.0,0.00017999,2]
[394455581,1763592640662,-500.0,0.00017999,2]
[394455582,1763592640674,-500.0,0.00017999,2]
[394455583,1763592640683,-304.92180814,0.00017999,2]
[394455584,1763592640692,-1462.69,0.00017999,2]
[394455585,1763592640701,-1462.69,0.00017999,2]
[394455586,1763592640711,-1462.69,0.00017999,2]
[394455587,1763592640720,-1462.69,0.00017999,2]
[394455588,1763592640731,-1462.69,0.00017999,2]
[394455590,1763592640740,-1462.69,0.00017999,2]
[394455592,1763592640749,-1462.69,0.00017999,2]
[394455594,1763592640758,-1462.69,0.00017999,2]
[394455596,1763592640767,-1462.69,0.00017999,2]
[394455598,1763592640776,-1462.69,0.00017999,2]
[394455600,1763592640785,-1462.69,0.00017999,2]
[394455602,1763592640794,-1462.69,0.00017999,2]
[394455604,1763592640803,-1462.69,0.00017999,2]
[394455607,1763592640813,-1462.69,0.00017999,2]
[394455609,1763592640827,-1462.69,0.00017999,2]
[394455611,1763592640837,-1462.69,0.00017999,2]
[394455612,1763592640846,-1462.69,0.00017999,2]
[394455614,1763592640855,-1462.84103988,0.00017999,2]
[394455617,1763592640865,-165.97531298,0.00018,2]
[394455619,1763592640874,-157.5149362,0.00018,2]
[394455621,1763592640883,-7324639.94135144,0.00018,2]
[394455635,1763592641584,-0.01672336,0.00018,2]
[394455636,1763592641601,-1071.133974,0.00018,2]
[394455637,1763592641618,-342.5158853,0.00018,2]
[394455638,1763592641638,-2374.31022005,0.00018,2]
[394455639,1763592641652,-682.81730511,0.00018,2]
[394455640,1763592641818,-133.53375242,0.00018,2]
[394455644,1763592644110,-489.64607935,0.00018,2]
[394455645,1763592644124,-398.55922036,0.00018,2]
[394455650,1763592645110,-824.05899454,0.00018,2]
[394455687,1763592646339,-408.99950128,0.00018,2]
[394455689,1763592646353,-18895.29040363,0.00018,2]
[394455690,1763592646366,-796.7384895,0.00018,2]
[394455691,1763592646462,-14902.0,0.00018,2]
[394455692,1763592646680,-3473.96580491,0.00018,2]
[394455693,1763592646730,-279.468,0.00018,2]
[394455694,1763592646743,-5446.49519535,0.00018,2]
[394455696,1763592646753,-3142.38438997,0.00018,2]
[394455718,1763592676317,500.0,0.0004211,30]
[394455719,1763592676961,500.0,0.0004211,30]
[394455720,1763592677594,500.0,0.0004211,30]
[394455721,1763592678200,500.0,0.0004211,30]
[394455722,1763592678804,500.0,0.0004211,30]
[394455723,1763592737949,182.94483035,0.0004211,30]
[394455724,1763592863047,999.0,0.00016745,3]
[394455725,1763592888054,400.0,0.000173,6]
[394455726,1763592890139,800.0,0.000174,6]
[394455734,1763593135186,500.0,0.0004211,120]
[394455735,1763593135415,500.0,0.0004211,120]
[394455736,1763593135651,452.54304087,0.0004211,120]
[394455738,1763593173218,150.0,0.00016245,120]
[394455740,1763593239672,151.0,0.00042107,39]
[394455741,1763593248263,151.0,0.00042107,39]
[394455742,1763593248578,151.0,0.00042107,39]
[394455743,1763593248877,151.0,0.00042107,39]
[394455744,1763593249190,151.0,0.00042107,39]
[394455745,1763593249499,151.0,0.00042107,39]
[394455746,1763593249789,151.0,0.00042107,39]
[394455747,1763593250130,151.0,0.00042107,39]
[394455748,1763593250408,151.0,0.00042107,39]
[394455749,1763593250837,151.0,0.00042107,39]
[394455750,1763593251225,151.0,0.00042107,39]
[394455751,1763593251505,151.0,0.00042107,39]
[394455752,1763593251827,151.0,0.00042107,39]
[394455753,1763593252108,151.0,0.00042107,39]
[394455754,1763593252399,151.0,0.00042107,39]
[394455755,1763593252691,151.0,0.00042107,39]
[394455756,1763593252999,151.0,0.00042107,39]
[394455757,1763593253287,151.0,0.00042107,39]
[394455758,1763593253588,151.0,0.00042107,39]
[394455759,1763593253882,158.983428,0.00042107,39]
[394455760,1763593264467,151.0,0.00042107,39]
[394455761,1763593270081,151.0,0.00042107,39]
[394455762,1763593272801,214.576605,0.00042107,39]
[394455763,1763593273142,214.576605,0.00042107,39]
[394455764,1763593273586,214.576605,0.00042107,39]
[394455765,1763593273876,214.576605,0.00042107,39]
[394455766,1763593274200,214.576605,0.00042107,39]
[394455767,1763593274490,214.576605,0.00042107,39]
[394455768,1763593274773,214.576605,0.00042107,39]
[394455769,1763593275894,214.576605,0.00042107,39]
[394455770,1763593276189,214.576605,0.00042107,39]
[394455771,1763593276535,214.576605,0.00042107,39]
[394455772,1763593276645,151.0,0.00042107,39]
[394455773,1763593276839,214.576605,0.00042107,39]
[394455774,1763593276954,151.0,0.00042107,39]
[394455775,1763593277142,214.576605,0.00042107,39]
[394455776,1763593277252,151.0,0.00042107,39]
[394455777,1763593277460,214.576605,0.00042107,39]
[394455778,1763593277548,151.0,0.00042107,39]
[394455779,1763593277760,214.576605,0.00042107,39]
[394455780,1763593277841,151.0,0.00042107,39]
[394455781,1763593278222,214.576605,0.00042107,39]
[394455782,1763593278306,151.0,0.00042107,39]
[394455783,1763593278384,214.576605,0.00042107,39]
[394455784,1763593278483,151.0,0.00042107,39]
[394455785,1763593278684,214.576605,0.00042107,39]
[394455786,1763593278782,151.0,0.00042107,39]
[394455787,1763593279154,214.576605,0.00042107,39]
[394455788,1763593279242,151.0,0.00042107,39]
[394455789,1763593279325,214.576605,0.00042107,39]
[394455790,1763593279420,151.0,0.00042107,39]
[394455791,1763593279601,214.576611,0.00042107,39]
[394455792,1763593279718,151.0,0.00042107,39]
[394455793,1763593280080,151.0,0.00042107,39]
[394455795,1763593280393,151.0,0.00042107,39]
[394455796,1763593280692,151.0,0.00042107,39]
[394455798,1763593281024,151.0,0.00042107,39]
[394455799,1763593281328,151.0,0.00042107,39]
[394455800,1763593281687,151.0,0.00042107,39]
[394455801,1763593281982,226.226262,0.00042107,39]
[394455802,1763593285733,151.0,0.00042107,39]
[394455803,1763593286015,151.0,0.00042107,39]
[394455804,1763593286294,151.0,0.00042107,39]
[394455805,1763593286735,151.0,0.00042107,39]
[394455806,1763593287044,188.47141,0.00042107,39]
[394455810,1763593288478,151.0,0.00042107,39]
[394455811,1763593288575,151.0,0.00042107,39]
[394455812,1763593290015,151.0,0.00042107,39]
[394455813,1763593290328,151.0,0.00042107,39]
[394455814,1763593290639,151.0,0.00042107,39]
[394455815,1763593290935,275.110495,0.00042107,39]
[394455816,1763593294187,151.0,0.00042107,39]
[394455817,1763593294486,151.0,0.00042107,39]
[394455818,1763593294788,151.0,0.00042107,39]
[394455819,1763593295112,151.0,0.00042107,39]
[394455820,1763593295403,152.324128,0.00042107,39]
[394455821,1763593298034,151.0,0.00042107,39]
[394455822,1763593302850,151.0,0.00042107,39]
[394455823,1763593303321,151.0,0.00042107,39]
[394455824,1763593303436,151.0,0.00042107,39]
[394455825,1763593303708,151.0,0.00042107,39]
[394455826,1763593304001,151.0,0.00042107,39]
[394455827,1763593304284,151.0,0.00042107,39]
[394455828,1763593304565,151.0,0.00042107,39]
[394455829,1763593304844,151.0,0.00042107,39]
[394455830,1763593305142,151.0,0.00042107,39]
[394455831,1763593305537,151.0,0.00042107,39]
[394455832,1763593305817,151.0,0.00042107,39]
[394455833,1763593306099,151.0,0.00042107,39]
[394455834,1763593306374,151.0,0.00042107,39]
[394455835,1763593306651,235.028788,0.00042107,39]
[394455836,1763593312011,151.0,0.00042107,39]
[394455837,1763593312298,151.0,0.00042107,39]
[394455838,1763593328134,151.0,0.00042107,39]
[394455839,1763593328412,151.0,0.00042107,39]
[394455841,1763593357455,151.0,0.00042107,39]
[394455842,1763593357913,566.714255,0.00042107,30]
[394455844,1763593358212,566.714255,0.00042107,30]
[394455846,1763593358636,566.714255,0.00042107,30]
[394455848,1763593358966,566.714255,0.00042107,30]
[394455850,1763593359242,566.714255,0.00042107,30]
[394455852,1763593359532,566.714255,0.00042107,30]
[394455854,1763593359829,566.714255,0.00042107,30]
[394455856,1763593360126,566.714255,0.00042107,30]
[394455858,1763593360430,566.714255,0.00042107,30]
[394455860,1763593360767,566.714255,0.00042107,30]
[394455862,1763593361084,566.714255,0.00042107,30]
[394455865,1763593361799,151.0,0.00042107,39]
[394455867,1763593362106,151.0,0.00042107,39]
[394455869,1763593362296,566.714255,0.00042107,30]
[394455870,1763593362398,151.0,0.00042107,39]
[394455872,1763593362585,566.714255,0.00042107,30]
[394455873,1763593362687,151.0,0.00042107,39]
[394455874,1763593362900,566.714255,0.00042107,30]
[394455875,1763593363109,151.0,0.00042107,39]
[394455876,1763593363201,566.714255,0.00042107,30]
[394455877,1763593363398,151.0,0.00042107,39]
[394455878,1763593363723,566.714255,0.00042107,30]
[394455879,1763593363942,151.0,0.00042107,39]
[394455880,1763593364027,566.714255,0.00042107,30]
[394455881,1763593364240,151.0,0.00042107,39]
[394455882,1763593364327,566.714255,0.00042107,30]
[394455883,1763593364519,151.0,0.00042107,39]
[394455884,1763593364812,248.441564,0.00042107,39]
[394455885,1763593364946,566.714255,0.00042107,30]
[394455886,1763593365254,566.714263,0.00042107,30]
[394455908,1763593397699,151.0,0.00042107,39]
[394455909,1763593397998,151.0,0.00042107,39]
[394455910,1763593398286,151.0,0.00042107,39]
[394455911,1763593398557,151.0,0.00042107,39]
[394455912,1763593398854,151.0,0.00042107,39]
[394455913,1763593399155,151.0,0.00042107,39]
[394455914,1763593399295,240.619454,0.00042107,39]
[394455915,1763593399449,151.0,0.00042107,39]
[394455916,1763593399744,151.0,0.00042107,39]
[394455917,1763593400029,151.0,0.00042107,39]
[394455918,1763593400322,151.0,0.00042107,39]
[394455919,1763593400629,151.0,0.00042107,39]
[394455920,1763593400926,151.0,0.00042107,39]
[394455921,1763593401349,242.598723,0.00042107,39]
[394455932,1763593403810,174.892637,0.00042107,39]
[394455933,1763593404110,174.892637,0.00042107,39]
[394455934,1763593404437,174.892637,0.00042107,39]
[394455935,1763593404989,174.892637,0.00042107,39]
[394455936,1763593405277,174.892637,0.00042107,39]
[394455937,1763593405753,174.892637,0.00042107,39]
[394455938,1763593405867,174.892637,0.00042107,39]
[394455939,1763593406191,174.892637,0.00042107,39]
[394455940,1763593406563,151.0,0.00042107,39]
[394455941,1763593406857,243.920066,0.00042107,39]
[394455942,1763593406945,174.892637,0.00042107,39]
[394455943,1763593407310,174.892637,0.00042107,39]
[394455944,1763593407611,174.892637,0.00042107,39]
[394455945,1763593407891,174.892637,0.00042107,39]
[394455946,1763593408171,174.892637,0.00042107,39]
[394455947,1763593408471,174.892637,0.00042107,39]
[394455948,1763593408768,174.892637,0.00042107,39]
[394455949,1763593409077,174.892637,0.00042107,39]
[394455950,1763593409560,174.892637,0.00042107,39]
[394455951,1763593409850,174.892637,0.00042107,39]
[394455952,1763593410166,174.892637,0.00042107,39]
[394455953,1763593410394,151.0,0.00042107,39]
[394455954,1763593410678,151.0,0.00042107,39]
[394455955,1763593410806,174.892639,0.00042107,39]
[394455956,1763593410873,151.0,0.00042107,39]
[394455957,1763593410965,151.0,0.00042107,39]
[394455958,1763593411099,151.0,0.00042107,39]
[394455959,1763593411274,151.0,0.00042107,39]
[394455960,1763593411520,151.0,0.00042107,39]
[394455961,1763593411599,151.0,0.00042107,39]
[394455962,1763593411701,151.0,0.00042107,39]
[394455963,1763593411833,151.0,0.00042107,39]
[394455964,1763593412021,151.0,0.00042107,39]
[394455965,1763593412300,151.0,0.00042107,39]
[394455966,1763593412540,151.0,0.00042107,39]
[394455967,1763593412605,162.725025,0.00042107,39]
[394455968,1763593412843,151.0,0.00042107,39]
[394455969,1763593413157,151.0,0.00042107,39]
[394455970,1763593413441,151.0,0.00042107,39]
[394455971,1763593413755,151.0,0.00042107,39]
[394455972,1763593414039,151.0,0.00042107,39]
[394455973,1763593414320,151.0,0.00042107,39]
[394455974,1763593415137,151.0,0.00042107,39]
[394455975,1763593415415,281.758994,0.00042107,39]
[394455980,1763593417114,272.66079,0.00042107,39]
[394455982,1763593417448,272.66079,0.00042107,39]
[394455984,1763593417739,272.66079,0.00042107,39]
[394455986,1763593418050,272.66079,0.00042107,39]
[394455988,1763593418341,272.66079,0.00042107,39]
[394455990,1763593418640,272.66079,0.00042107,39]
[394455992,1763593418929,272.66079,0.00042107,39]
[394455994,1763593419229,272.66079,0.00042107,39]
[394455996,1763593419700,272.66079,0.00042107,39]
[394455997,1763593419810,272.66079,0.00042107,39]
[394455998,1763593420114,272.66079,0.00042107,39]
[394455999,1763593420400,272.66079,0.00042107,39]
[394456000,1763593420710,272.66079,0.00042107,39]
[394456001,1763593420990,272.66079,0.00042107,39]
[394456002,1763593421285,272.66079,0.00042107,39]
[394456003,1763593421747,272.66079,0.00042107,39]
[394456004,1763593428083,272.66079,0.00042107,39]
[394456005,1763593428417,272.66079,0.00042107,39]
[394456006,1763593428758,272.66079,0.00042107,39]
[394456007,1763593429071,272.66079,0.00042107,39]
[394456008,1763593445128,262.203616,0.00042107,39]
[394456010,1763593448340,151.0,0.00042107,39]
[394456011,1763593448624,282.600692,0.00042107,39]
[394456014,1763593478831,255.602712,0.00042107,39]
[394456015,1763593492373,299.99,0.00016369,4]
[394456020,1763593522456,151.0,0.00042107,39]
[394456021,1763593529757,151.0,0.00042107,39]
[394456022,1763593530079,151.0,0.00042107,39]
[394456023,1763593530383,151.0,0.00042107,39]
[394456024,1763593530710,151.0,0.00042107,39]
[394456025,1763593531040,151.0,0.00042107,39]
[394456026,1763593531351,151.0,0.00042107,39]
[394456027,1763593531636,151.0,0.00042107,39]
[394456028,1763593531937,151.0,0.00042107,39]
[394456029,1763593532114,151.0,0.00042107,39]
[394456030,1763593532257,151.0,0.00042107,39]
[394456031,1763593532406,151.0,0.00042107,39]
[394456032,1763593532572,151.0,0.00042107,39]
[394456033,1763593532704,151.0,0.00042107,39]
[394456034,1763593532858,151.0,0.00042107,39]
[394456035,1763593533168,151.0,0.00042107,39]
[394456036,1763593533257,151.0,0.00042107,39]
[394456037,1763593533342,151.0,0.00042107,39]
[394456038,1763593533468,151.0,0.00042107,39]
[394456039,1763593533594,151.0,0.00042107,39]
[394456040,1763593533799,151.0,0.00042107,39]
[394456041,1763593533883,151.0,0.00042107,39]
[394456042,1763593534091,243.017431,0.00042107,39]
[394456043,1763593534176,160.23852,0.00042107,39]
[394456044,1763593534688,151.0,0.00042107,39]
[394456046,1763593535150,151.0,0.00042107,39]
[394456048,1763593535294,211.798713,0.00042107,39]
[394456070,1763593640567,300.0,0.000173,6]
[394456071,1763593642659,600.0,0.000174,6]
[394456072,1763593647607,-346.6648598,0.000161,2]
[394456073,1763593647627,-28.48706187,0.00016155,2]
[394456074,1763593649219,-207.05895522,0.00016155,2]
[394456075,1763593674670,-154.6410347,0.000161,2]
[394456076,1763593689485,346.66485979,0.000161,2]
[394456086,1763593814234,-85.33805913,0.00016155,2]
[394456087,1763593814259,-263.27950744,0.00016155,2]
[394456089,1763593818728,-36.72049256,0.00016155,2]
[394456090,1763593818752,-140.454137,0.0001616,2]
[394456091,1763593820909,-109.545863,0.0001616,2]
[394456092,1763593820931,-136.77523773,0.00016166,2]
[394456095,1763593831421,-77.68476227,0.00016166,2]
[394456097,1763593831430,-300.0,0.0001619,2]
[394456098,1763593831439,-1798.46,0.00016195,2]
[394456100,1763593831449,-165.97531298,0.000162,2]
[394456101,1763593831461,-157.5149362,0.000162,2]
[394456102,1763593831470,-241.28304479,0.00016245,2]
[394456103,1763593831480,-150.0,0.00016245,2]
[394456104,1763593831490,-250.0,0.00016303,2]
[394456105,1763593831500,-305.49926359,0.00016303,2]
[394456106,1763593831509,-150.99,0.00016369,2]
[394456107,1763593831518,-1200.0,0.00016416,2]
[394456108,1763593831528,-300.0,0.00016416,2]
[394456109,1763593831538,-1200.0,0.00016416,2]
[394456110,1763593831547,-80.96301499,0.00016416,2]
[394456111,1763593831563,-219.03698501,0.00016416,2]
[394456112,1763593831572,-185.85451099,0.00016417,2]
[394456113,1763593831584,-364.14548901,0.00016417,2]
[394456114,1763593831593,-82.14024861,0.00016418,2]
[394456115,1763593831604,-317.96,0.00016418,2]
[394456116,1763593831615,-469.8898526,0.00016418,2]
[394456117,1763593831626,-908.89989879,0.00016418,2]
[394456118,1763593831636,-150.99,0.00016418,2]
[394456119,1763593831646,-3469.86010121,0.00016418,2]
[394456120,1763593831657,-6418.23989879,0.00016418,2]
[394456121,1763593831666,-9999.99,0.00016418,2]
[394456122,1763593831675,-999.99,0.00016418,2]
[394456123,1763593831685,-5066.45195501,0.00016418,2]
[394456124,1763593831697,-4933.53804499,0.00016418,2]
[394456125,1763593831706,-9999.99,0.00016418,2]
[394456126,1763593831715,-200.0,0.00016435,2]
[394456127,1763593831727,-1833.46,0.00016435,2]
[394456128,1763593831736,-524.02,0.00016493,2]
[394456129,1763593831745,-468.8415485,0.000165,2]
[394456130,1763593831755,-500.0,0.000165,2]
[394456131,1763593831765,-500.0,0.000165,2]
[394456132,1763593831775,-500.0,0.000165,2]
[394456133,1763593831785,-500.0,0.000165,2]
[394456134,1763593831795,-154.6410347,0.00016799,2]
[394456135,1763593831805,-151.0,0.00016889,2]
[394456136,1763593831815,-151.0,0.00016889,2]
[394456137,1763593831825,-183.65199174,0.00016889,2]
[394456138,1763593831836,-478.61,0.000169,2]
[394456139,1763593831846,-478.61,0.000169,2]
[394456140,1763593831857,-478.61,0.000169,2]
[394456141,1763593831866,-478.46,0.000169,2]
[394456142,1763593831876,-622.0,0.00016936,2]
[394456143,1763593831885,-150.0,0.00016978,2]
[394456144,1763593831895,-250.0,0.00017,2]
[394456145,1763593831904,-307.28,0.00017005,2]
[394456146,1763593831913,-298.67,0.00017007,2]
[394456147,1763593831922,-700.83,0.00017041,2]
[394456148,1763593831932,-1000.0,0.00017048,2]
[394456149,1763593831941,-622.0,0.00017068,2]
[394456150,1763593831951,-700.83,0.000171,2]
[394456151,1763593831961,-700.83,0.000171,2]
[394456152,1763593831971,-700.83,0.000171,2]
[394456153,1763593831981,-700.83,0.000171,2]
[394456154,1763593832160,-622.0,0.00017124,2]
[394456155,1763593832169,-478.61,0.00017141,2]
[394456156,1763593832182,-622.0,0.00017155,2]
[394456157,1763593832192,-478.61,0.000172,2]
[394456158,1763593832202,-700.83,0.000172,2]
[394456159,1763593832212,-478.61,0.000172,2]
[394456160,1763593832221,-700.83,0.000172,2]
[394456161,1763593832234,-478.61,0.000172,2]
[394456162,1763593832243,-478.61,0.00017241,2]
[394456163,1763593832253,-622.0,0.00017286,2]
[394456164,1763593832262,-700.83,0.000173,2]
[394456165,1763593832272,-700.83,0.000173,2]
[394456166,1763593832282,-700.83,0.000173,2]
[394456167,1763593832291,-232.0,0.00017347,2]
[394456168,1763593832301,-1000.0,0.00017434,2]
[394456169,1763593832311,-2500.0,0.00017434,2]
[394456170,1763593832321,-167.62964537,0.00017434,2]
[394456171,1763593832330,-18594.57251042,0.00017434,2]
[394456172,1763593832340,-151.0,0.00017438,2]
[394456173,1763593832350,-232.0,0.00017445,2]
[394456174,1763593832359,-151.0,0.00017447,2]
[394456175,1763593832369,-622.0,0.00017469,2]
[394456176,1763593832378,-18594.57251038,0.00017486,2]
[394456177,1763593832388,-1000.0,0.000175,6]
[394456178,1763593832397,-239.34911396,0.00017533,2]
[394456179,1763593832406,-215.67817425,0.00017533,2]
[394456180,1763593832416,-500.0,0.00017533,2]
[394456181,1763593832425,-500.0,0.00017533,2]
[394456182,1763593832434,-151.64995729,0.00017533,2]
[394456183,1763593832444,-500.0,0.00017533,2]
[394456184,1763593832453,-500.0,0.00017533,2]
[394456185,1763593832464,-500.0,0.00017533,2]
[394456186,1763593832476,-500.0,0.00017533,2]